lending/lending_fUSD_20251016
["ID","MTS","AMOUNT","RATE_DAILY","PERIOD"]
[391501031,1760622688825,-653.71,0.0002,2]
[391501032,1760622688835,-1080.25,0.0002,2]
[391501033,1760622688844,-853.05,0.0002,2]
[391501034,1760622688854,-500.0,0.0002,2]
[391501035,1760622688863,-3640.41,0.0002,2]
[391501036,1760622688873,-3259.36,0.0002,2]
[391501037,1760622688883,-2551.38,0.0002,2]
[391501038,1760622688892,-1584.55,0.0002,2]
[391501039,1760622688902,-1178.15,0.0002,2]
[391501040,1760622688911,-500.0,0.0002,2]
[391501041,1760622688921,-500.0,0.0002,2]
[391501042,1760622688931,-656.34,0.0002,2]
[391501043,1760622688940,-607.1,0.0002,2]
[391501044,1760622688953,-500.0,0.0002,2]
[391501045,1760622688963,-4125.7,0.0002,2]
[391501046,1760622688974,-988.33,0.0002,2]
[391501047,1760622688984,-509.89,0.0002,2]
[391501048,1760622688993,-1671.31,0.0002,2]
[391501049,1760622689004,-7550.96,0.0002,2]
[391501050,1760622689014,-1572.1,0.0002,2]
[391501051,1760622689024,-1313.38,0.0002,2]
[391501052,1760622689034,-4245.72,0.0002,2]
[391501053,1760622689044,-3176.05,0.0002,2]
[391501054,1760622689054,-500.0,0.0002,2]
[391501055,1760622689064,-1797.15,0.0002,2]
[391501056,1760622689074,-891.42,0.0002,2]
[391501057,1760622689083,-1043.57,0.0002,2]
[391501058,1760622689093,-944.13,0.0002,2]
[391501059,1760622689103,-1891.66,0.0002,2]
[391501060,1760622689113,-500.0,0.0002,2]
[391501061,1760622689123,-717.71,0.0002,2]
[391501062,1760622689133,-500.0,0.0002,2]
[391501063,1760622689142,-908.64,0.0002,2]
[391501064,1760622689152,-3700.12,0.0002,2]
[391501065,1760622689163,-1651.53,0.0002,2]
[391501066,1760622689173,-840.05,0.0002,2]
[391501067,1760622689183,-961.02,0.0002,2]
[391501068,1760622689192,-500.0,0.0002,2]
[391501069,1760622689205,-678.06,0.0002,2]
[391501070,1760622689215,-1287.35,0.0002,2]
[391501071,1760622689225,-915.6,0.0002,2]
[391501072,1760622689235,-2181.82,0.0002,2]
[391501073,1760622689245,-3115.99,0.0002,2]
[391501074,1760622689255,-1268.96,0.0002,2]
[391501075,1760622689265,-1985.4,0.0002,2]
[391501076,1760622689275,-553.44,0.0002,2]
[391501077,1760622689284,-500.0,0.0002,2]
[391501078,1760622689294,-3529.62,0.0002,2]
[391501079,1760622689304,-1679.51,0.0002,2]
[391501080,1760622689313,-1529.81,0.0002,2]
[391501081,1760622689323,-500.0,0.0002,2]
[391501082,1760622689333,-2011.48,0.0002,2]
[391501083,1760622689343,-500.0,0.0002,2]
[391501084,1760622689353,-500.0,0.0002,2]
[391501085,1760622689363,-4235.51,0.0002,2]
[391501086,1760622689644,-500.0,0.0002,2]
[391501087,1760622689667,-500.0,0.0002,2]
[391501088,1760622689677,-500.0,0.0002,2]
[391501089,1760622689687,-3031.18,0.0002,2]
[391501090,1760622689696,-1091.39,0.0002,2]
[391501091,1760622689710,-7593.53,0.0002,2]
[391501092,1760622689719,-4268.11,0.0002,2]
[391501093,1760622689729,-3025.1,0.0002,2]
[391501094,1760622689738,-3827.42,0.0002,2]
[391501095,1760622689747,-500.0,0.0002,2]
[391501096,1760622689756,-500.0,0.0002,2]
[391501097,1760622689765,-500.0,0.0002,2]
[391501098,1760622689774,-705.48,0.0002,2]
[391501099,1760622689783,-2854.32,0.0002,2]
[391501100,1760622689793,-3313.49,0.0002,2]
[391501101,1760622689802,-771.59,0.0002,2]
[391501102,1760622689811,-500.0,0.0002,2]
[391501103,1760622689820,-10656.45,0.0002,2]
[391501104,1760622689829,-500.0,0.0002,2]
[391501105,1760622689839,-3665.44,0.0002,2]
[391501106,1760622689854,-3249.2,0.0002,2]
[391501107,1760622689863,-941.31,0.0002,2]
[391501108,1760622689872,-2336.52,0.0002,2]
[391501109,1760622689881,-1831.3,0.0002,2]
[391501110,1760622689891,-500.0,0.0002,2]
[391501111,1760622689900,-649.92,0.0002,2]
[391501112,1760622689909,-1046.64,0.0002,2]
[391501113,1760622689919,-2648.13,0.0002,2]
[391501114,1760622689929,-1643.87,0.0002,2]
[391501115,1760622689939,-500.0,0.0002,2]
[391501116,1760622689948,-500.0,0.0002,2]
[391501117,1760622689961,-500.0,0.0002,2]
[391501118,1760622689970,-612.21,0.0002,2]
[391501119,1760622689979,-598.17,0.0002,2]
[391501120,1760622689989,-1984.56,0.0002,2]
[391501121,1760622689998,-3685.97,0.0002,2]
[391501122,1760622690009,-500.0,0.0002,2]
[391501123,1760622690018,-2304.13,0.0002,2]
[391501124,1760622690027,-2058.45,0.0002,2]
[391501125,1760622690036,-1127.11,0.0002,2]
[391501126,1760622690046,-1684.45,0.0002,2]
[391501127,1760622690055,-657.45,0.0002,2]
[391501128,1760622690065,-1987.85,0.0002,2]
[391501129,1760622690074,-1820.75,0.0002,2]
[391501130,1760622690084,-3110.25,0.0002,2]
[391501131,1760622690094,-739.42,0.0002,2]
[391501132,1760622690103,-589.13,0.0002,2]
[391501133,1760622690112,-4203.67,0.0002,2]
[391501134,1760622690122,-500.0,0.0002,2]
[391501135,1760622690131,-3869.35,0.0002,2]
[391501136,1760622690141,-648.9028133,0.0002,2]
[391501137,1760622690151,-587.14,0.0002,2]
[391501138,1760622690160,-707.89,0.0002,2]
[391501139,1760622690170,-9032.13,0.0002,2]
[391501140,1760622690180,-3091.12,0.0002,2]
[391501141,1760622690190,-2654.98,0.0002,2]
[391501142,1760622690201,-500.0,0.0002,2]
[391501143,1760622690211,-500.0,0.0002,2]
[391501144,1760622690221,-510.51,0.0002,2]
[391501145,1760622690231,-500.0,0.0002,2]
[391501146,1760622690241,-3893.45,0.0002,2]
[391501147,1760622690250,-3273.51,0.0002,2]
[391501148,1760622690260,-599.13,0.0002,2]
[391501149,1760622690270,-571.81,0.0002,2]
[391501150,1760622690279,-500.0,0.0002,2]
[391501151,1760622690289,-500.0,0.0002,2]
[391501152,1760622690298,-500.0,0.0002,2]
[391501153,1760622690309,-1000.0,0.0002,2]
[391501154,1760622690319,-1162.82,0.0002,2]
[391501155,1760622690329,-2804.59,0.0002,2]
[391501156,1760622690339,-2348.4,0.0002,2]
[391501157,1760622690349,-2753.32,0.0002,2]
[391501158,1760622690359,-4187.13,0.0002,2]
[391501159,1760622690369,-638.21,0.0002,2]
[391501160,1760622690378,-1106.18,0.0002,2]
[391501161,1760622690387,-1937.79,0.0002,2]
[391501162,1760622690400,-5535.6,0.0002,2]
[391501163,1760622690409,-1484.48,0.0002,2]
[391501164,1760622690418,-835.8,0.0002,2]
[391501165,1760622690428,-596.47,0.0002,2]
[391501166,1760622690437,-589.37,0.0002,2]
[391501167,1760622690446,-16361.62,0.0002,2]
[391501168,1760622690458,-500.0,0.0002,2]
[391501169,1760622690467,-500.0,0.0002,2]
[391501170,1760622690476,-1013.56,0.0002,2]
[391501171,1760622690486,-2813.75,0.0002,2]
[391501172,1760622690495,-779.28,0.0002,2]
[391501173,1760622690505,-6158.35,0.0002,2]
[391501174,1760622690515,-1260.02,0.0002,2]
[391501175,1760622690524,-3360.51,0.0002,2]
[391501176,1760622690533,-500.0,0.0002,2]
[391501177,1760622690542,-500.0,0.0002,2]
[391501178,1760622690552,-649.71,0.0002,2]
[391501179,1760622690561,-843.5,0.0002,2]
[391501180,1760622690570,-500.0,0.0002,2]
[391501181,1760622690579,-3355.22,0.0002,2]
[391501182,1760622690588,-635.54,0.0002,2]
[391501183,1760622690597,-500.0,0.0002,2]
[391501184,1760622690607,-3318.15,0.0002,2]
[391501185,1760622690617,-1054.7,0.0002,2]
[391501186,1760622690626,-500.0,0.0002,2]
[391501187,1760622690635,-748.85,0.0002,2]
[391501188,1760622690644,-1497.32,0.0002,2]
[391501189,1760622690653,-1945.16,0.0002,2]
[391501190,1760622690662,-1130.94,0.0002,2]
[391501191,1760622690672,-3269.2,0.0002,2]
[391501192,1760622690681,-500.0,0.0002,2]
[391501193,1760622690690,-10400.96,0.0002,2]
[391501194,1760622690700,-2517.01,0.0002,2]
[391501195,1760622690710,-5526.39,0.0002,2]
[391501196,1760622690719,-848.22,0.0002,2]
[391501197,1760622690729,-1178.22,0.0002,2]
[391501198,1760622690738,-11285.02,0.0002,2]
[391501199,1760622690747,-1108.27,0.0002,2]
[391501200,1760622690756,-500.0,0.0002,2]
[391501201,1760622690766,-1745.61,0.0002,2]
[391501202,1760622690776,-1744.29,0.0002,2]
[391501203,1760622690785,-5165.76,0.0002,2]
[391501204,1760622690794,-780.48,0.0002,2]
[391501205,1760622690803,-4151.11,0.0002,2]
[391501206,1760622690812,-500.0,0.0002,2]
[391501207,1760622690821,-510.94,0.0002,2]
[391501208,1760622690830,-535.49152485,0.0002,2]
[391501209,1760622691814,-1120.527517,0.00019178,2]
[391501210,1760622691824,-1120.527517,0.00019178,2]
[391501211,1760622691833,-1120.527517,0.00019178,2]
[391501212,1760622691842,-1120.527517,0.00019178,2]
[391501213,1760622691852,-1120.527517,0.00019178,2]
[391501214,1760622691861,-1120.527517,0.00019178,2]
[391501215,1760622691870,-1120.527517,0.00019178,2]
[391501216,1760622691879,-3072.45,0.00019178,2]
[391501217,1760622691889,-5787.8564849,0.00019178,2]
[391501218,1760622691999,-16.1235151,0.00019178,2]
[391501219,1760622692010,-293.5765649,0.00019178,2]
[391501221,1760622695675,150.0,0.00030826,120]
[391501224,1760622768001,2000.0,0.00027397,120]
[391501226,1760622783847,1000.0,0.00030826,30]
[391501227,1760622828848,1000.0,0.00030826,30]
[391501230,1760622851408,999.0,0.00030668,30]
[391501276,1760622932609,548.84,9.112e-05,2]
[391501277,1760622932809,548.84,9.591e-05,2]
[391501278,1760622933547,548.84,0.00010071,2]
[391501279,1760622933642,548.84,0.00010551,2]
[391501280,1760622933721,548.84,0.0001103,2]
[391501281,1760622933784,548.84,0.0001151,2]
[391501282,1760622933963,548.84,0.00011989,2]
[391501283,1760622934418,548.84,0.00012469,2]
[391501284,1760622934707,548.84,0.00012948,2]
[391501285,1760622934905,500.0,0.00030668,120]
[391501286,1760622935082,500.0,0.00030668,120]
[391501287,1760622935167,500.0,0.00030668,120]
[391501288,1760622935330,500.0,0.00030668,120]
[391501289,1760622935421,500.0,0.00030668,120]
[391501290,1760622935508,4282.35,0.00030668,120]
[391501291,1760622935620,500.0,0.00030668,120]
[391501292,1760622935714,500.0,0.00030668,120]
[391501293,1760622935809,4282.35,0.00030668,120]
[391501294,1760622935891,2093.06,0.00030668,120]
[391501295,1760622935991,1011.2,0.00030668,120]
[391501296,1760622936076,500.0,0.00030668,120]
[391501298,1760622936164,500.0,0.00030668,120]
[391501299,1760622936262,4282.35,0.00030668,120]
[391501300,1760622936295,-221.75770419,0.00013428,2]
[391501301,1760622936389,2093.06,0.00030668,120]
[391501302,1760622936479,1011.2,0.00030668,120]
[391501304,1760622936607,500.0,0.00030668,120]
[391501305,1760622936735,500.0,0.00030668,120]
[391501306,1760622936869,4282.35,0.00030668,120]
[391501307,1760622936967,1011.2,0.00030668,120]
[391501309,1760622937056,2093.06,0.00030668,120]
[391501310,1760622937143,500.0,0.00030668,120]
[391501311,1760622937228,500.0,0.00030668,120]
[391501312,1760622937323,4282.35,0.00030668,120]
[391501313,1760622937424,500.0,0.00030668,120]
[391501315,1760622937509,1011.2,0.00030668,120]
[391501316,1760622937591,2093.06,0.00030668,120]
[391501317,1760622937750,500.0,0.00030668,120]
[391501318,1760622937838,4282.35,0.00030668,120]
[391501319,1760622937930,500.0,0.00030668,120]
[391501320,1760622938020,8667.46,0.00030668,120]
[391501321,1760622938104,2093.06,0.00030668,120]
[391501322,1760622938192,1011.2,0.00030668,120]
[391501323,1760622938276,500.0,0.00030668,120]
[391501324,1760622938366,4282.35,0.00030668,120]
[391501325,1760622938469,500.0,0.00030668,120]
[391501326,1760622938552,8667.46,0.00030668,120]
[391501327,1760622938633,1011.2,0.00030668,120]
[391501328,1760622938717,2093.06,0.00030668,120]
[391501329,1760622938799,500.0,0.00030668,120]
[391501330,1760622938887,4282.35,0.00030668,120]
[391501331,1760622938988,500.0,0.00030668,120]
[391501332,1760622939071,1011.2,0.00030668,120]
[391501333,1760622939156,2093.06,0.00030668,120]
[391501334,1760622939244,8667.46,0.00030668,120]
[391501335,1760622939327,500.0,0.00030668,120]
[391501336,1760622939407,4282.35,0.00030668,120]
[391501337,1760622939505,600.60488592,0.00030668,120]
[391501338,1760622939585,1011.2,0.00030668,120]
[391501339,1760622939665,8667.46,0.00030668,120]
[391501340,1760622940205,500.0,0.00030668,120]
[391501341,1760622940283,2093.06,0.00030668,120]
[391501342,1760622940365,4282.35,0.00030668,120]
[391501343,1760622940457,8667.46,0.00030668,120]
[391501344,1760622940536,1011.2,0.00030668,120]
[391501345,1760622940616,500.0,0.00030668,120]
[391501346,1760622940697,2093.06,0.00030668,120]
[391501347,1760622940775,4282.35,0.00030668,120]
[391501348,1760622940873,1011.2,0.00030668,120]
[391501349,1760622940956,8667.46,0.00030668,120]
[391501350,1760622941040,2093.06,0.00030668,120]
[391501351,1760622941125,500.0,0.00030668,120]
[391501352,1760622941210,4282.35,0.00030668,120]
[391501353,1760622941295,500.0,0.00030668,120]
[391501354,1760622941391,1011.2,0.00030668,120]
[391501355,1760622941472,8667.46,0.00030668,120]
[391501356,1760622941554,500.0,0.00030668,120]
[391501357,1760622941635,2093.06,0.00030668,120]
[391501358,1760622941733,4282.35,0.00030668,120]
[391501359,1760622941923,8667.46,0.00030668,120]
[391501360,1760622942042,500.0,0.00030668,120]
[391501361,1760622942133,4282.35,0.00030668,120]
[391501362,1760622942226,2093.06,0.00030668,120]
[391501363,1760622942315,8667.46,0.00030668,120]
[391501364,1760622942394,1011.2,0.00030668,120]
[391501365,1760622942475,3556.76,0.00030668,120]
[391501366,1760622942556,4282.35,0.00030668,120]
[391501367,1760622942651,2093.06,0.00030668,120]
[391501368,1760622942733,1011.2,0.00030668,120]
[391501369,1760622942815,8667.46,0.00030668,120]
[391501370,1760622942896,500.0,0.00030668,120]
[391501371,1760622942978,4282.35,0.00030668,120]
[391501372,1760622943065,3556.76,0.00030668,120]
[391501373,1760622943145,1011.2,0.00030668,120]
[391501374,1760622943375,2093.06,0.00030668,120]
[391501375,1760622943457,8667.46,0.00030668,120]
[391501376,1760622943539,4282.35,0.00030668,120]
[391501377,1760622943624,615.58440177,0.00030668,120]
[391501378,1760622943706,3556.76,0.00030668,120]
[391501379,1760622943792,1011.2,0.00030668,120]
[391501380,1760622943872,2093.06,0.00030668,120]
[391501381,1760622943957,3556.76,0.00030668,120]
[391501382,1760622944037,4282.35,0.00030668,120]
[391501383,1760622944121,1011.2,0.00030668,120]
[391501384,1760622944203,2093.06,0.00030668,120]
[391501385,1760622944290,3556.76,0.00030668,120]
[391501386,1760622944368,4282.35,0.00030668,120]
[391501387,1760622944448,1011.2,0.00030668,120]
[391501388,1760622944566,2093.06,0.00030668,120]
[391501389,1760622944729,3556.76,0.00030668,120]
[391501390,1760622944808,4282.35,0.00030668,120]
[391501391,1760622944890,1011.2,0.00030668,120]
[391501392,1760622944978,2093.06,0.00030668,120]
[391501393,1760622945064,549.15,0.00030668,120]
[391501394,1760622945144,3556.76,0.00030668,120]
[391501395,1760622945227,1011.2,0.00030668,120]
[391501396,1760622945313,2093.06,0.00030668,120]
[391501397,1760622945396,4282.35,0.00030668,120]
[391501398,1760622945477,549.15,0.00030668,120]
[391501399,1760622945555,3556.76,0.00030668,120]
[391501400,1760622945633,1011.2,0.00030668,120]
[391501401,1760622945711,2093.06,0.00030668,120]
[391501402,1760622945790,4282.35,0.00030668,120]
[391501403,1760622945870,500.0,0.00030668,120]
[391501404,1760622945955,549.15,0.00030668,120]
[391501405,1760622946037,3556.76,0.00030668,120]
[391501406,1760622946118,1011.2,0.00030668,120]
[391501407,1760622946200,2093.06,0.00030668,120]
[391501408,1760622946282,500.0,0.00030668,120]
[391501409,1760622946368,4282.35,0.00030668,120]
[391501411,1760622946459,3556.76,0.00030668,120]
[391501412,1760622946543,1011.2,0.00030668,120]
[391501413,1760622946626,549.15,0.00030668,120]
[391501415,1760622946710,2093.06,0.00030668,120]
[391501416,1760622946802,505.92,0.00030668,120]
[391501417,1760622946952,500.0,0.00030668,120]
[391501418,1760622947033,4282.3584995,0.00030668,120]
[391501419,1760622947119,3556.76,0.00030668,120]
[391501420,1760622947202,549.15,0.00030668,120]
[391501421,1760622947285,1011.2,0.00030668,120]
[391501422,1760622947368,505.92,0.00030668,120]
[391501423,1760622947453,2093.06,0.00030668,120]
[391501424,1760622947534,500.0,0.00030668,120]
[391501425,1760622947619,500.0,0.00030668,120]
[391501426,1760622947699,549.15,0.00030668,120]
[391501427,1760622947779,505.92,0.00030668,120]
[391501428,1760622947862,1011.21307937,0.00030668,120]
[391501429,1760622947958,2093.19,0.00030668,120]
[391501430,1760622948058,549.15,0.00030668,120]
[391501431,1760622948146,500.0,0.00030668,120]
[391501432,1760622948235,505.92,0.00030668,120]
[391501433,1760622948323,8667.46,0.00030668,120]
[391501434,1760622948410,549.15,0.00030668,120]
[391501435,1760622948497,3556.76,0.00030668,120]
[391501436,1760622948587,500.0,0.00030668,120]
[391501437,1760622948674,505.92,0.00030668,120]
[391501438,1760622948765,8667.46,0.00030668,120]
[391501439,1760622948851,549.15,0.00030668,120]
[391501440,1760622948938,3556.76,0.00030668,120]
[391501441,1760622949025,500.0,0.00030668,120]
[391501442,1760622949109,505.92,0.00030668,120]
[391501443,1760622949197,8667.46,0.00030668,120]
[391501444,1760622949284,549.15,0.00030668,120]
[391501445,1760622949369,500.0,0.00030668,120]
[391501446,1760622949457,3556.76,0.00030668,120]
[391501447,1760622949896,505.92,0.00030668,120]
[391501448,1760622950004,8667.46,0.00030668,120]
[391501449,1760622950080,549.15,0.00030668,120]
[391501450,1760622950161,500.0,0.00030668,120]
[391501451,1760622950697,3556.76,0.00030668,120]
[391501452,1760622950777,505.92,0.00030668,120]
[391501453,1760622950857,8667.46,0.00030668,120]
[391501454,1760622950939,500.0,0.00030668,120]
[391501455,1760622950969,-160.43977978,0.00013428,2]
[391501456,1760622951051,549.15,0.00030668,120]
[391501457,1760622951218,505.92,0.00030668,120]
[391501458,1760622951312,3556.76,0.00030668,120]
[391501459,1760622951400,8667.46,0.00030668,120]
[391501460,1760622951481,549.15,0.00030668,120]
[391501461,1760622951561,505.92,0.00030668,120]
[391501462,1760622951641,3556.76,0.00030668,120]
[391501463,1760622951720,549.15,0.00030668,120]
[391501464,1760622951799,8667.46,0.00030668,120]
[391501465,1760622951878,505.92,0.00030668,120]
[391501466,1760622951958,3556.76,0.00030668,120]
[391501467,1760622952042,549.15,0.00030668,120]
[391501468,1760622952123,8667.46,0.00030668,120]
[391501469,1760622952203,505.92,0.00030668,120]
[391501470,1760622952286,3556.76,0.00030668,120]
[391501471,1760622952386,549.15,0.00030668,120]
[391501472,1760622952473,8667.46,0.00030668,120]
[391501473,1760622952552,505.92,0.00030668,120]
[391501474,1760622952634,3556.76,0.00030668,120]
[391501475,1760622952714,549.15,0.00030668,120]
[391501476,1760622952796,8667.46,0.00030668,120]
[391501477,1760622952881,505.92,0.00030668,120]
[391501478,1760622952963,3556.76,0.00030668,120]
[391501479,1760622953050,8667.46,0.00030668,120]
[391501480,1760622953131,505.92,0.00030668,120]
[391501481,1760622953219,3556.76,0.00030668,120]
[391501482,1760622953301,1240.88,0.00030668,120]
[391501483,1760622953381,505.92,0.00030668,120]
[391501484,1760622953463,8667.46,0.00030668,120]
[391501485,1760622953552,549.15,0.00030668,120]
[391501486,1760622953712,3556.76,0.00030668,120]
[391501487,1760622953800,1240.88,0.00030668,120]
[391501488,1760622953885,505.92,0.00030668,120]
[391501489,1760622953970,8667.65842622,0.00030668,120]
[391501490,1760622954054,3556.95085228,0.00030668,120]
[391501491,1760622954137,1240.88,0.00030668,120]
[391501492,1760622954233,549.15,0.00030668,120]
[391501493,1760622954313,505.92,0.00030668,120]
[391501494,1760622954448,1240.88,0.00030668,120]
[391501495,1760622954533,549.15,0.00030668,120]
[391501496,1760622954632,505.92,0.00030668,120]
[391501497,1760622954713,1240.88,0.00030668,120]
[391501498,1760622954792,549.15,0.00030668,120]
[391501499,1760622954887,505.92,0.00030668,120]
[391501500,1760622954972,549.15,0.00030668,120]
[391501501,1760622955054,500.0,0.00030668,120]
[391501502,1760622955133,1240.88,0.00030668,120]
[391501503,1760622955223,505.92,0.00030668,120]
[391501504,1760622955307,549.15,0.00030668,120]
[391501505,1760622955387,1240.88,0.00030668,120]
[391501506,1760622955463,468.18836035,0.00030668,120]
[391501507,1760622955541,505.92,0.00030668,120]
[391501508,1760622955661,1240.88,0.00030668,120]
[391501509,1760622955739,549.17806033,0.00030668,120]
[391501510,1760622955984,505.92,0.00030668,120]
[391501511,1760622956070,1240.88,0.00030668,120]
[391501512,1760622956154,505.92002679,0.00030668,120]
[391501513,1760622956244,1240.88,0.00030668,120]
[391501514,1760622956334,1240.88,0.00030668,120]
[391501515,1760622956537,1240.88,0.00030668,120]
[391501516,1760622956628,1240.88,0.00030668,120]
[391501517,1760622956797,1240.88,0.00030668,120]
[391501518,1760622956875,500.0,0.00030668,120]
[391501519,1760622956955,1240.88,0.00030668,120]
[391501520,1760622957053,500.0,0.00030668,120]
[391501521,1760622957215,1240.88,0.00030668,120]
[391501522,1760622957338,500.0,0.00030668,120]
[391501523,1760622957416,1240.88,0.00030668,120]
[391501524,1760622957494,500.0,0.00030668,120]
[391501525,1760622957576,500.0,0.00030668,120]
[391501526,1760622957654,1240.88,0.00030668,120]
[391501527,1760622957732,869.64,0.00030668,120]
[391501528,1760622957810,500.0,0.00030668,120]
[391501529,1760622957897,500.0,0.00030668,120]
[391501530,1760622957988,1240.88,0.00030668,120]
[391501531,1760622958073,869.64,0.00030668,120]
[391501532,1760622958159,500.0,0.00030668,120]
[391501533,1760622958243,500.0,0.00030668,120]
[391501534,1760622958333,2575.93,0.00030668,120]
[391501535,1760622958419,500.0,0.00030668,120]
[391501536,1760622958502,1240.88,0.00030668,120]
[391501537,1760622958592,869.64,0.00030668,120]
[391501538,1760622958678,500.0,0.00030668,120]
[391501539,1760622958770,500.0,0.00030668,120]
[391501540,1760622958860,2575.93,0.00030668,120]
[391501541,1760622958948,1240.88,0.00030668,120]
[391501542,1760622959039,869.64,0.00030668,120]
[391501543,1760622959127,500.0,0.00030668,120]
[391501544,1760622959214,500.0,0.00030668,120]
[391501545,1760622959298,500.0,0.00030668,120]
[391501546,1760622959384,2575.93,0.00030668,120]
[391501547,1760622959473,1240.88,0.00030668,120]
[391501548,1760622959560,869.64,0.00030668,120]
[391501549,1760622959644,500.0,0.00030668,120]
[391501550,1760622959725,500.0,0.00030668,120]
[391501551,1760622959812,500.0,0.00030668,120]
[391501552,1760622959900,500.0,0.00030668,120]
[391501553,1760622959983,2575.93,0.00030668,120]
[391501554,1760622960065,1526.08,0.00030668,120]
[391501555,1760622961011,1240.88,0.00030668,120]
[391501556,1760622961603,869.64,0.00030668,120]
[391501557,1760622961681,500.0,0.00030668,120]
[391501558,1760622961762,500.0,0.00030668,120]
[391501559,1760622961844,500.0,0.00030668,120]
[391501560,1760622961930,500.0,0.00030668,120]
[391501561,1760622962015,2575.93,0.00030668,120]
[391501562,1760622962096,1240.94471352,0.00030668,120]
[391501563,1760622962183,1526.08,0.00030668,120]
[391501564,1760622962267,869.64,0.00030668,120]
[391501565,1760622962353,500.0,0.00030668,120]
[391501566,1760622962434,500.0,0.00030668,120]
[391501567,1760622962518,500.0,0.00030668,120]
[391501568,1760622962599,500.0,0.00030668,120]
[391501569,1760622962751,2575.93,0.00030668,120]
[391501570,1760622962834,1526.08,0.00030668,120]
[391501571,1760622962918,869.64,0.00030668,120]
[391501572,1760622963002,500.0,0.00030668,120]
[391501573,1760622963082,500.0,0.00030668,120]
[391501574,1760622963163,500.0,0.00030668,120]
[391501575,1760622963249,468.72,0.00030668,120]
[391501576,1760622963341,1526.08,0.00030668,120]
[391501577,1760622963427,2575.93,0.00030668,120]
[391501578,1760622963516,869.64,0.00030668,120]
[391501579,1760622963602,500.0,0.00030668,120]
[391501580,1760622963687,500.0,0.00030668,120]
[391501581,1760622963773,500.0,0.00030668,120]
[391501582,1760622963865,2575.93,0.00030668,120]
[391501583,1760622963954,1526.08,0.00030668,120]
[391501584,1760622964039,500.0,0.00030668,120]
[391501585,1760622964122,869.64,0.00030668,120]
[391501586,1760622964207,500.0,0.00030668,120]
[391501587,1760622964292,500.0,0.00030668,120]